Cogmind - Beta 15 @@@ ROGUE MODE // 2025.09.29 @ 02:07:06 Player: Runagate Result: Self-destructed Performance ------------- Evolutions (2) 1000 Regions Visited (3) 600 Robots Destroyed (23) 115 Value Destroyed (572) 572 Prototype IDs (0) 0 Alien Tech Used (0) 0 Bonus (0) 0 TOTAL SCORE: 2287 Bonus ------- None Cogmind --------- Core Integrity 550/550 Matter 215/300 Energy 200/200 System Corruption 0% Temperature Cool (0) Movement Walking (120) Location -8/Materials Parts ------- > --- POWER (1) -------- Subdweller Power Source > --- PROPULSION (3) --- Aluminum Leg Aluminum Leg > --- UTILITY (4) ------ Small Storage Unit Seismic Detector > --- WEAPON (3) ------- Assault Rifle Barrage Gun > --- INVENTORY (8) ---- Light Ion Engine High-capacity Matter Pod (136) Small Laser Light Assault Rifle Peak State ------------ > --- POWER ------------ Subdweller Power Source > --- PROPULSION ------- Aluminum Leg Aluminum Leg > --- UTILITY ---------- Small Storage Unit Seismic Detector > --- WEAPON ----------- Assault Rifle Barrage Gun > --- INVENTORY -------- Light Ion Engine High-capacity Matter Pod Small Laser Light Assault Rifle [Rating: 10] Favorites ----------- Power Ion Engine Engine Ion Engine Propulsion Aluminum Leg Leg Aluminum Leg Utility Small Storage Unit Device Seismic Detector Storage Small Storage Unit Weapon Small Laser Energy Gun Small Laser Ballistic Gun Assault Rifle Launcher Grenade Launcher Build | -11 -10 -10 -8 ------- Run | Yrd Mat Sub Mat Slots Evolved 4 | . . . 4 Power . | . . . . Propulsion 1 | . . . 1 Utility 2 | . . . 2 Weapon 1 | . . . 1 Parts Attached 16 | 7 4 5 . Power 4 | 1 1 2 . Engine 4 | 1 1 2 . Core . | . . . . Reactor . | . . . . Propulsion 5 | 2 2 1 . Treads . | . . . . Leg 5 | 2 2 1 . Wheel . | . . . . Hover . | . . . . Flight . | . . . . Utility 2 | 2 . . . Device 1 | 1 . . . Storage 1 | 1 . . . Processor . | . . . . Hackware . | . . . . Protection . | . . . . Artifact . | . . . . Weapon 5 | 2 1 2 . Energy Gun 1 | 1 . . . Energy Cannon . | . . . . Ballistic Gun 3 | 1 1 1 . Ballistic Cannon . | . . . . Launcher 1 | . . 1 . Special Weapon . | . . . . Impact Weapon . | . . . . Slashing Weapon . | . . . . Piercing Weapon . | . . . . Special Melee Weapon . | . . . . Unidentified Prototypes . | . . . . Parts Lost 5 | . . 5 . Power 1 | . . 1 . Propulsion 2 | . . 2 . Utility . | . . . . Weapon 2 | . . 2 . Highest Loss Streak 3 | . . 3 . To Critical Strikes . | . . . . Average Backups 5 | 1 5 6 . Power . | . 1 . . Propulsion 1 | . . 1 . Utility . | . . 1 . Weapon 2 | . 2 3 . Tool/Special . | . . . . Unused Backups 2 | . . . 2 Power . | . . . . Propulsion . | . . . . Utility 1 | . . . 1 Weapon 1 | . . . 1 Tool/Special . | . . . . Average Slot Usage (%) 96 | . 100 95 . Engine 14 | . 14 14 . Leg 25 | . 28 24 . Device 14 | . 14 14 . Storage 14 | . 14 14 . Energy Gun 13 | . 14 12 . Ballistic Gun 11 | . 14 10 . Launcher 2 | . . 4 . Peak Build Rating 10 | 7 7 10 . Average Rating 7 | 5 7 7 . On Entrance 6 | . 7 7 10 Naked Turns . | . . . . Heaviest Build 16 | 13 14 16 . Greatest Support 20 | 20 20 20 . Greatest Overweight (x) 1 | . . 1 . Average Overweight (x) . | . . . . Largest Inventory Capacity 8 | 8 8 8 . Average Capacity 7 | 7 8 8 . Most Carried 8 | 2 8 7 . Average Carried 5 | 1 5 6 . Final Capacity 8 | 8 8 8 8 Final Carried 7 | 2 7 4 4 Class Distribution -------------------- 100% | Mutant Dominant Class ---------------- Mutant | -10/Materials Mutant | -10/Subcaves Mutant | -8/Materials Resources | -11 -10 -10 -8 ----------- Run | Yrd Mat Sub Mat Matter Collected 731 | 256 181 294 . Remotely . | . . . . Salvage Created 625 | 127 181 317 . Parts 41 | 16 12 13 . Haulers Intercepted . | . . . . Recyclers Shooed . | . . . . Parts Field Recycled . | . . . . Retrieved Matter . | . . . . Parts Self-Destructed 16 | . . 16 . Prevented . | . . . . Kills | -11 -10 -10 -8 ------- Run | Yrd Mat Sub Mat Combat Hostiles Destroyed 16 | . 4 12 . Guns 12 | . 4 8 . AOE 4 | . . 4 . Classes Destroyed 7 | 2 1 4 . Tunneler 4 | 4 . . . Recycler 1 | 1 . . . Turret 2 | . . 2 . Swarmer 5 | . . 5 . Grunt 5 | . 4 1 . Sentry 1 | . . 1 . Subdweller 5 | . . 5 . Best Kill Streak 6 | 3 3 6 . Combat Bots Only 6 | . 3 6 . Max Kills in Single Turn 2 | 1 1 2 . Gunslinging . | . . . . Exploded 2 | . . 2 . Melee . | . . . . Uniques/NPCs Destroyed . | . . . . Combat | -11 -10 -10 -8 -------- Run | Yrd Mat Sub Mat Hostile Shots Fired 106 | . 24 82 . Missed 36 | . 7 29 . Hits 70 | . 17 53 . Projectile 70 | . 17 53 . Critical Strikes 1 | . . 1 . Damage Taken 845 | . 216 629 . Core 149 | . 40 109 . Absorbed by Shields . | . . . . Core Remaining (%) 70 | 100 . 40 . Volleys Fired 73 | 18 20 35 . Largest 2 | 2 2 2 . Hottest 70 | 60 60 70 . Shots Fired 140 | 35 40 65 . Gun 127 | 35 40 52 . Cannon . | . . . . Launcher 13 | . . 13 . Special . | . . . . Kinetic 65 | 18 20 27 . Thermal 62 | 17 20 25 . Explosive 13 | . . 13 . Electromagnetic . | . . . . Robot Hit Streak 10 | 6 6 10 . Robot Miss Streak 4 | 4 4 3 . Penetration Max . | . . . . Secondary Targets . | . . . . Shots Hit Robots 88 | 21 25 42 . Core Hits 42 | 9 10 23 . Critical Kills . | . . . . Critical Parts Destroyed . | . . . . Critical Strikes . | . . . . Melee Attacks . | . . . . Impact . | . . . . Slashing . | . . . . Piercing . | . . . . Sneak Attacks . | . . . . Combat Hostiles . | . . . . Follow-up Attacks . | . . . . Damage Inflicted 1564 | 202 298 1064 . Guns 962 | 202 294 466 . Cannons . | . . . . Explosions 598 | . . 598 . Melee . | . . . . Ramming 4 | . 4 . . Kinetic 489 | 82 126 281 . Thermal 473 | 120 168 185 . Explosive 598 | . . 598 . Electromagnetic . | . . . . Impact . | . . . . Slashing . | . . . . Piercing . | . . . . Highest Corruption . | . . . . Average Corruption . | . . . . Corruption Purged . | . . . . Corruption Blocked . | . . . . Overload Shots . | . . . . Overflow Damage . | . . . . Projectiles . | . . . . Explosions . | . . . . Melee . | . . . . Knockbacks . | . . . . Impact . | . . . . Kinetic . | . . . . Secondary . | . . . . Self-Inflicted Damage 67 | . . 67 . Shots 3 | . . 3 . Rammed . | . . . . Targets Rammed 1 | . 1 . . Kicked 1 | . 1 . . Crushed . | . . . . Highest Temperature 60 | 60 57 12 . Average Temperature 27 | 26 29 5 . Received Heat Transfer 363 | . 117 246 . Siege Activations . | . . . . Martial Activations . | . . . . Shielding Activations . | . . . . Robots Disrupted . | . . . . Combat Hostiles . | . . . . Robots Corrupted . | . . . . Combat Hostiles . | . . . . Parts Fried . | . . . . Impact Corruptions . | . . . . Robots Melted . | . . . . Combat Hostiles . | . . . . Parts Melted . | . . . . Heat Transferred 1075 | 275 375 425 . Parts Sabotaged . | . . . . Parts Stolen . | . . . . Parts Stripped . | . . . . Power Chain Reactions . | . . . . Alert | -11 -10 -10 -8 ------- Run | Yrd Mat Sub Mat Maximum Alert Level . | . . . . Low Security (%) 100 | 100 100 . . Level 1 . | . . . . Level 2 . | . . . . Level 3 . | . . . . Level 4 . | . . . . Level 5 . | . . . . High Security . | . . . . Max Security . | . . . . Peak Influence 75 | 15 75 . . Initial 83 | . . . 83 Average 16 | 2 26 . . Influence Increases 420 | 25 115 280 . Destroy 0b10 Robot/C 260 | . 80 180 . Destroy 0b10 Robot/NC 25 | 25 . . . Destroy Leader 30 | . 20 10 . Lose Combat Pursuer 105 | . 15 90 . Influence Decreases 337 | 25 60 175 77 Entered New Map 104 | . . 27 77 Time Decay 183 | 25 60 98 . Lost Part 50 | . . 50 . Squads Dispatched 1 | . 1 . . Investigation . | . . . . Extermination . | . . . . Reinforcement 1 | . 1 . . Assault . | . . . . Garrison . | . . . . Intercept . | . . . . Searches Triggered . | . . . . Construction Impeded . | . . . . Haulers Reinforced . | . . . . Active Scanning Responses . | . . . . Cargo Convoy Interrupts . | . . . . Stealth | -11 -10 -10 -8 --------- Run | Yrd Mat Sub Mat Distress Signals 1 | . 1 . . Communications Jammed . | . . . . Distress Signals . | . . . . Times Spotted 24 | . 9 15 . Peak Tracking Total 4 | . 4 4 . Tactical Retreats 5 | . 1 4 . Traps | -11 -10 -10 -8 ------- Run | Yrd Mat Sub Mat Traps Triggered 1 | . . 1 . Indirectly . | . . . . Trap Hack Attempts . | . . . . Triggered . | . . . . Disarmed . | . . . . Reprogrammed . | . . . . Reused . | . . . . Traps Extracted . | . . . . Installed . | . . . . Triggered . | . . . . Machines | -11 -10 -10 -8 ---------- Run | Yrd Mat Sub Mat Machines Disabled 1 | . . 1 . Max in Single Turn 1 | . . 1 . Machines Repaired . | . . . . Machines Dismantled . | . . . . Machines Sabotaged . | . . . . Overloaded Fab Kills . | . . . . Hacking | -11 -10 -10 -8 --------- Run | Yrd Mat Sub Mat Machines Accessed 2 | . 1 1 . Terminals 1 | . 1 . . Fabricators . | . . . . Repair Stations . | . . . . Recycling Units . | . . . . Scanalyzers . | . . . . Garrison Access . | . . . . Total Hacks 6 | . 1 5 . Successful 5 | . . 5 . Failed 1 | . 1 . . Catastrophic 1 | . 1 . . Database Lockouts . | . . . . Manual . | . . . . Terminals 1 | . 1 . . Fabricators . | . . . . Repair Stations . | . . . . Recycling Units . | . . . . Scanalyzers . | . . . . Garrison Access . | . . . . Terminal Hacks 5 | . . 5 . Record 5 | . . 5 . Fabricator Hacks . | . . . . Repair Station Hacks . | . . . . Recycling Unit Hacks . | . . . . Scanalyzer . | . . . . Garrison Access Hacks . | . . . . Unauthorized Hacks . | . . . . Terminals . | . . . . Fabricators . | . . . . Repair Stations . | . . . . Recycling Units . | . . . . Scanalyzers . | . . . . Garrison Access . | . . . . Data Cores Recovered . | . . . . Used . | . . . . Hacking Detections 1 | . 1 . . Full Trace Events . | . . . . Feedback Events . | . . . . Feedback Blocked . | . . . . Robot Schematics Acquired . | . . . . Robots Built . | . . . . Authchips . | . . . . Time . | . . . . Total Robot Build Rating . | . . . . Part Schematics Acquired . | . . . . Parts Built . | . . . . Authchips . | . . . . Time . | . . . . Total Part Build Rating . | . . . . Parts Repaired . | . . . . Time . | . . . . Parts Recycled . | . . . . Recycled Matter . | . . . . Retrieved Matter . | . . . . Retrieved Components . | . . . . Parts Scanalyzed . | . . . . Part Schematics Acquired . | . . . . Parts Damaged . | . . . . Bothacking | -11 -10 -10 -8 ------------ Run | Yrd Mat Sub Mat Used RIF Installer . | . . . . Robots Hacked . | . . . . Non-combat . | . . . . Combat . | . . . . Robot Hacks Applied . | . . . . Relay Couplers Released . | . . . . Fabnet Peak Effective % . | . . . . Robots Rewired . | . . . . Allies Hacked . | . . . . Hacks Repelled . | . . . . Allies | -11 -10 -10 -8 -------- Run | Yrd Mat Sub Mat Total Allies . | . . . . Largest Group . | . . . . Highest-Rated Group . | . . . . Highest-Rated Ally . | . . . . Total Orders . | . . . . Ally Attacks . | . . . . Total Damage . | . . . . Kills . | . . . . Allies Corrupted . | . . . . Allies Melted . | . . . . Intel | -11 -10 -10 -8 ------- Run | Yrd Mat Sub Mat Active Infowar (turns) 766 | 34 216 516 . Seismic 766 | 34 216 516 . Robot Analysis Total . | . . . . Derelict Logs Recovered . | . . . . Drone Launches . | . . . . Drone Recoveries . | . . . . Exploration | -11 -10 -10 -8 ------------- Run | Yrd Mat Sub Mat Turns Passed 880 | 148 216 516 . Spaces Moved 483 | 71 114 298 . Core 1 | 1 . . . Treads . | . . . . Legs 482 | 70 114 298 . Wheels . | . . . . Hover . | . . . . Flight . | . . . . Fastest Speed 50 | 50 120 120 . Average Speed 128 | 119 120 133 . Slowest Speed 190 | 120 120 190 . Overloaded Moves . | . . . . Propulsion Burnouts . | . . . . Robots Hopped . | . . . . Potential Cave-ins . | . . . . Cave-ins Triggered . | . . . . Exploration Rate (%) 14 | 5 20 30 1 Regions Visited 3 Branch Regions 1 Pre-discovered Areas . | . . . . Known Exits Taken . | . . . . Unknown Exits Taken 3 | 1 1 1 . Scrap Searched . | . . . . Spaces Dug . | . . . . Terrain Destroyed 73 | . . 73 . Melee . | . . . . Projectile . | . . . . AOE 73 | . . 73 . Terrain Rammed . | . . . . Walls Destroyed . | . . . . Machines Disabled . | . . . . Actions | -11 -10 -10 -8 --------- Run | Yrd Mat Sub Mat Total 602 | 99 153 350 . Wait 21 | 2 10 9 . Move 480 | 70 113 297 . Hop . | . . . . Pick Up 5 | 2 3 . . Fast Attach 7 | 7 . . . Attach 5 | . . 5 . Detach . | . . . . Swap 8 | . 4 4 . Drop 2 | . 2 . . Fire 73 | 18 20 35 . Melee . | . . . . Ram . | . . . . Kick 1 | . 1 . . Crush . | . . . . Escape Stasis . | . . . . Rewire . | . . . . Trap . | . . . . Miscellaneous . | . . . . Route ------- -11/Scrapyard -10/Materials -10/Subcaves (discovered 2 exits: [*Mat] / [*Rec]) -8/Materials History --------- Turn | Location | Event 9 | -11/Scrapyard | Discovered new exit (range 15) 149 | -11/Scrapyard | Entered Materials 320 | -10/Materials | Build established: Mutant 333 | -10/Materials | Discovered new exit (range 9) 365 | -10/Materials | Entered Subcaves 494 | -10/Subcaves | Ambushed by Subdwellers from Twisted Machinery 606 | -10/Subcaves | Visited Clippyterm 612 | -10/Subcaves | Learned 40 Factory zone layouts 612 | -10/Subcaves | Learned Factory stockpile data 649 | -10/Subcaves | A swath of the cavern ceiling suddenly collapsed 835 | -10/Subcaves | Core integrity fell below 50% 844 | -10/Subcaves | Discovered new exit (range 12) 846 | -10/Subcaves | Discovered new exit (range 12) 881 | -10/Subcaves | Entered Materials 881 | -8/Materials | Evolved 4 slots: Propulsion x1, Utility x2, Weapon x1 881 | -8/Materials | Self-destructed Last Messages --------------- 00820_ Subatomizers dissect the Sub. Monowheel. 00830_ Acquired 39 matter. 00834_ Subatomizers dissect the Sub. Monowheel. 00838_ Sml. Laser destroyed. 00844_ Acquired 15 matter. 00844_ EXIT=FOUND 00845_ Subatomizers dissect the Sub. Monowheel. 00846_ Destroyed Autobeam. 00846_ EXIT=FOUND 00848_ Grenade Launcher destroyed. 00850_ Autobeam Turret destroyed. 00858_ Aluminum Leg destroyed. 00864_ Autobeam Turret destroyed. 00864_ Machine disabled. 00867_ Subatomizers dissect the Sub. Monowheel. 00870_ Acquired 34 matter. 00877_ Subatomizers dissect the Sub. Monowheel. PARAMETERS=PROPULSION+1,UTILITY+2,WEAPON+1 LOCATION=UNKNOWN GOAL=ESCAPE Map ----- +----------------------------------------------------+ | ?????????????????????????????????????????????????? | | ?????????????????????????????????????????????????? | | ?????????????????????????????????????????????????? | | ?????????????????????????????????????????????????? | | ?????????????????????????????????????????????????? | | ?????????????????????????????????????????????????? | | ?????????????????????????????????????????????????? | | ?????????????????????????????????????????????????? | | ?????????????????????????????????????????????????? | | ?????????????????????????????????????????????????? | | ?????????????????????????????????????????????????? | | ?????????????????????????????????????????????????? | | ?????????????????????????????????????????????????? | | ?????????????????????????????????????????????????? | | ?????????????????????####+#####??????????????????? | | ????????????????????? ??????????????????? | | ????????????????????? ???????????????????? | | ?????????????????????? ???????????????????? | | ?????????????????????? ????????????????????? | | ??????????????????????# ????????????????????? | | ??????????????????????# ?????????????????????? | | ??????????????????????# ?????????????????????? | | ??????????????????????# #?????????????????????? | | ??????????????????????# #?????????????????????? | | ??????????????????????# #?????????????????????? | | ??????????????????????# @ #?????????????????????? | | ??????????????????????# #?????????????????????? | | ??????????????????????######?????????????????????? | | ?????????????????????????????????????????????????? | | ?????????????????????????????????????????????????? | | ?????????????????????????????????????????????????? | | ?????????????????????????????????????????????????? | | ?????????????????????????????????????????????????? | | ?????????????????????????????????????????????????? | | ?????????????????????????????????????????????????? | | ?????????????????????????????????????????????????? | | ?????????????????????????????????????????????????? | | | | | | | | | | | | | | | | | | | | | | | | | | | +----------------------------------------------------+ Best States ------------- Heat Dissipation 25 Energy Generation 15 Energy Capacity 250 Matter Stores 300 Matter Capacity 300 Sight Range 16 Terrain Scan Density 10 Evasion (%) 55 Item Schematics ----------------- None Robot Schematics ------------------ None Fabricated ------------ Nothing Repaired ---------- Nothing Alien Tech Used ----------------- None Achievements -------------- None Challenges ------------ None Game ------ Seed WardroneShiftScanner Manual? 0 Play Time 00:05:17 Cumulative 110.4 hours Start 2025.09.29 @ 02:01:54 End 2025.09.29 @ 02:07:06 Sessions 1 Manual Loads 0 Difficulty Rogue Special Mode None Game No. 216 Rogue 214 Adventurer 0 Explorer 2 Win Type - Total 1 Types 1/0/0/0/0/0/0/0/0/0 Lore% 39 Gallery% 49 Achievement% 43 Wizard Run 0 Options --------- Layout 2 ASCII 0 Keyboard 1 Movement Arrows Keybinds 0 Fullscreen 1 Font 28/SmallcapsGlow Map View 50x49 Zoom Use 0% Tactical HUD 1 Map Filters NONE Filters NONE Steam 1 RUN: 4a8529cd-79d0-450e-a3b4-52cede4e96ab